[Event "USA-ch Women 2024"]
[Site "Saint Louis"]
[Date "2024.10.19"]
[Round "8.5"]
[White "Pourkashiyan, Atousa"]
[Black "Yip, Carissa"]
[Result "0-1"]
[ECO "B06"]
[WhiteElo "2269"]
[BlackElo "2418"]
[Annotator "TA"]
[PlyCount "100"]
[EventDate "2024.10.09"]
[EventType "tourn"]
[EventCountry "USA"]
[SourceTitle "playchess.com"]
[Source "ChessBase"]
[SourceQuality "1"]
[TimeControl "40/5400+30:1800+30"]

{[%evp 9,100,39,37,26,28,26,29,24,41,-15,24,16,24,14,21,15,9,18,0,-30,20,-34,0,-27,-33,-32,-29,-18,-32,-303,-281,-352,-349,-362,-318,-354,-356,-350,-360,-334,-250,-279,-250,-172,-177,-284,-285,-267,-262,-483,-481,-419,-450,-2058,-2032,-1945,-1937,-1900,-1377,-1351,-466,-618,-621,-631,-621,-1320,-1343,-1201,-1029,-1352,-1343,-1569,-1562,-1476,-1529,-1264,-1014,-29976,-29977,-29976,-29978,-29978,-29979,-29977,-29962,-29957,-29957,-29986,-29986,-29992,-29992,-29992,-29992]} 1. e4 {[%emt 0:00:04]} g6 {[%emt 0:00:20]} 2. d4 {[%emt 0:00:11]} Bg7 {[%emt 0:00:03]} 3. Nc3 {[%emt 0:00:12]} a6 {[%emt 0:00:04]} 4. f4 {[%emt 0:01:04]} d6 {[%emt 0:00:23]} 5. Nf3 {[%emt 0:00:27][%cal Bg1f3,Bf3d4,Bd4b3][%mdl 32]} Nd7 {[%emt 0:00:15]} 6. Bd3 {[%emt 0:01:15]} c5 {[%emt 0:00:04]} 7. Be3 {[%emt 0:03:35]} Ngf6 {[%emt 0:00:20]} 8. dxc5 {[%emt 0:13:11] White has an edge.} Ng4 {[%emt 0:00:14]} 9. Bd4 {[%emt 0:07:15]} ({White should try} 9. Bg1 $14) 9... Bxd4 {[%emt 0:00:11]} 10. Nxd4 {[%emt 0:00:03]} Nxc5 {[%emt 0:00:05]} 11. Qe2 {[%emt 0:09:29]} O-O {[%emt 0:00:07]} 12. h3 {[%emt 0:04:37]} Nf6 {[%emt 0:00:23]} 13. O-O-O {[%emt 0:01:54]} b5 {[%emt 0:03:47]} 14. Nb3 {[%emt 0:16:08]} Na4 {[%emt 0:09:02]} (14... b4 $142 15. Nd5 Nxd5 16. exd5 Nxd3+ 17. Rxd3 a5) 15. Nb1 {[%emt 0:09:36]} (15. e5 $11 Nxc3 16. bxc3) 15... Qb6 {[%emt 0:04:55]} 16. g4 {[%emt 0:01:40]} Bb7 {[%emt 0:09:13]} 17. h4 {[%emt 0:01:30]} Nc5 {[%emt 0:10:44]} 18. Nxc5 {[%emt 0:07:05]} dxc5 {[%emt 0:00:03]} 19. e5 $2 {[%emt 0:05:46][%mdl 8192] Now White is beyond hope.} c4 $19 {[%emt 0:00:34]} 20. exf6 {[%emt 0:00:55]} cxd3 {[%emt 0:00:07]} 21. Qxd3 {[%emt 0:00:56][%cal Of6e7]} Bxh1 {[%emt 0:04:13]} (21... exf6 22. Rhf1 $17) 22. fxe7 {[%emt 0:01:09]} Rfe8 {[%emt 0:00:04]} 23. Rxh1 {[%emt 0:01:35]} Rxe7 {[%emt 0:03:41]} 24. Nc3 {[%emt 0:00:31]} Rae8 {[%emt 0:04:30]} 25. Rd1 {[%emt 0:06:30] [#]} Re1 $1 {[%emt 0:01:59] ...Rxd1+ is the strong threat.} 26. Nd5 {[%emt 0:00:29]} Qe6 {[%emt 0:04:13]} 27. g5 {[%emt 0:00:49]} (27. b3 $142) 27... Rxd1+ {[%emt 0:00:10]} 28. Qxd1 {[%emt 0:00:02][%mdl 4096] Endgame. KQR-KQN} Kf8 {[%emt 0:00:09] Hoping for ...Rd8.} 29. c4 $2 {[%emt 0:02:55]} (29. b3 {keeps fighting.} Qe1 30. Nf6) 29... bxc4 {[%emt 0:02:38]} 30. Nf6 {[%emt 0:01:02]} Qe3+ {[%emt 0:00:07]} 31. Kc2 {[%emt 0:01:34]} (31. Kb1 $142 Qe1 32. Qxe1 Rxe1+ 33. Kc2) 31... Qf2+ {[%emt 0:04:33]} 32. Kc3 {[%emt 0:00:02]} Re3+ {[%emt 0:00:14]} 33. Kxc4 {[%emt 0:00:05]} Qxf4+ {[%emt 0:00:04]} 34. Qd4 {[%emt 0:01:42]} Qxd4+ {[%emt 0:01:16]} (34... Qf1+ $142 35. Kd5 Rd3 36. Qxd3 Qxd3+ 37. Ke5 Qg3+ 38. Kd5 Qg2+ (38... Qxh4 $2 39. Ne4 $19) 39. Kd6 Qxb2 40. Nd7+ Kg7) 35. Kxd4 {[%emt 0:00:02] KR-KN} Re2 {[%emt 0:00:06]} 36. Kc3 {[%emt 0:01:26]} Kg7 {[%emt 0:00:10] Threatens to win with ...h5.} 37. a4 {[%emt 0:01:02]} h5 {[%emt 0:02:53]} 38. b4 {[%emt 0:00:50]} Rh2 {[%emt 0:00:44] [#] aiming for ...Rh3+.} 39. Ne8+ {[%emt 0:00:47]} Kf8 {[%emt 0:00:10]} 40. Nc7 {[%emt 0:00:06]} Rh3+ {[%emt 0:00:23]} 41. Kd2 {[%emt 0:04:47]} Rxh4 {[%emt 0:00:29]} 42. Nxa6 {[%emt 0:00:04]} Rg4 {[%emt 0:00:14][%cal Oh5h4] ...h4! would now be deadly.} 43. a5 {[%emt 0:00:41]} h4 {[%emt 0:00:39] Black mates.} 44. b5 {[%emt 0:06:03]} h3 {[%emt 0:00:25]} 45. b6 {[%emt 0:03:33]} h2 {[%emt 0:00:06]} 46. b7 {[%emt 0:01:18]} Rd4+ {[%emt 0:00:03]} 47. Kc3 {[%emt 0:02:32]} Rd8 {[%emt 0:00:05]} (47... h1=R $2 {is the wrong capture.} 48. b8=Q+ (48. b8=R+ Rd8 $18) 48... Kg7 49. Kxd4 $18 (49. Qe5+ Kg8 $18)) 48. Nc5 {[%emt 0:02:11]} h1=Q {[%emt 0:00:07]} 49. a6 {[%emt 0:00:04]} Qc6 {[%emt 0:01:55]} 50. Kc4 {[%emt 0:00:24]} Qb6 {[%emt 0:00:04] Weighted Error Value: White=0.71/Black=0.26 (precise) .  Loses game:     	White=1     	---        Mistake:       	White=5     	Black=1      Inaccurate:     	White=2     	Black=2      OK:         	White=11    	Black=14     Best:        	White=2     	Black=2      Strong:       	---       	Black=1} 0-1

[Event "USA-ch Women 2024"]
[Site "Saint Louis"]
[Date "2024.10.19"]
[Round "8.6"]
[White "Abrahamyan, Tatev"]
[Black "Atwell, Rose"]
[Result "1-0"]
[ECO "B57"]
[WhiteElo "2327"]
[BlackElo "2185"]
[Annotator "RC"]
[PlyCount "71"]
[EventDate "2024.10.09"]
[EventType "tourn"]
[EventCountry "USA"]
[SourceTitle "playchess.com"]
[Source "ChessBase"]
[SourceQuality "1"]
[TimeControl "40/5400+30:1800+30"]

1. e4 {[%emt 0:00:08]} c5 {[%emt 0:00:05]} 2. Nf3 {[%emt 0:00:11]} d6 {[%emt 0:00:05]} 3. d4 {[%emt 0:00:44]} cxd4 {[%emt 0:00:05]} 4. Nxd4 {[%emt 0:00:02]} Nf6 {[%emt 0:00:09]} 5. Nc3 {[%emt 0:00:20]} Nc6 {[%emt 0:00:06]} 6. Bc4 {[%emt 0:00:22]} Qb6 {[%emt 0:00:15]} 7. Nb3 {[%emt 0:00:28]} e6 {[%emt 0:00:43]} 8. Bf4 {[%emt 0:00:33]} Ne5 {[%emt 0:00:26]} 9. Be2 {[%emt 0:00:16]} Bd7 {[%emt 0:05:02]} 10. Qd2 {[%emt 0:02:56]} Rc8 {[%emt 0:04:31]} 11. O-O-O {[%emt 0:19:27]} Be7 {[%emt 0:15:34]} 12. Be3 {[%emt 0:15:10]} Qc7 {[%emt 0:02:30]} 13. Nb5 {[%emt 0:15:38]} Bxb5 {[%emt 0:01:31]} 14. Bxb5+ {[%emt 0:00:03]} Kf8 {[%emt 0:02:02]} 15. f3 {[%emt 0:05:22]} d5 {[%emt 0:15:59]} 16. Kb1 {[%emt 0:05:19]} dxe4 {[%emt 0:05:22]} 17. fxe4 {[%emt 0:03:20]} Nxe4 {[%emt 0:03:24]} 18. Qe2 {[%emt 0:01:53]} a6 {[%emt 0:08:26]} 19. Bf4 {[%emt 0:09:24]} g5 {[%emt 0:11:49]} 20. Rd7 {[%emt 0:06:35]} Qb8 {[%emt 0:01:30]} 21. Bxe5 {[%emt 0:01:55]} Qxe5 {[%emt 0:00:11]} 22. Bd3 {[%emt 0:00:02]} Bf6 {[%emt 0:03:43]} 23. c3 {[%emt 0:00:12]} Nd6 {[%emt 0:02:56]} 24. Rd1 {[%emt 0:05:57]} Qxh2 {[%emt 0:04:19]} 25. Bxa6 {[%emt 0:02:14]} bxa6 {[%emt 0:01:20]} 26. R1xd6 {[%emt 0:00:06]} Be5 {[%emt 0:05:37]} 27. Rd3 {[%emt 0:00:56]} Bf4 {[%emt 0:01:09]} 28. Nd4 {[%emt 0:00:50]} Qh6 {[%emt 0:01:42]} 29. g3 {[%emt 0:01:11]} g4 {[%emt 0:03:29]} 30. gxf4 {[%emt 0:00:36]} Qxf4 {[%emt 0:00:26]} 31. Rd1 {[%emt 0:02:04]} Qg5 {[%emt 0:00:55]} 32. Rf1 {[%emt 0:00:11]} Qg6+ {[%emt 0:00:04]} 33. Qc2 {[%emt 0:00:49]} f5 {[%emt 0:00:34]} 34. Qe2 {[%emt 0:00:56]} Re8 {[%emt 0:00:32]} 35. Qe5 {[%emt 0:00:14]} Rg8 {[%emt 0:00:37]} 36. Qd6+ {[%emt 0:00:07]} 1-0